[Event "22nd ETCC Women 2019"]
[Site "Batumi"]
[Date "2019.10.26"]
[Round "3.7"]
[White "Osmanodja, Filiz"]
[Black "Hrescak, Ivana"]
[Result "1-0"]
[ECO "B90"]
[WhiteElo "2225"]
[BlackElo "2226"]
[Annotator "NA"]
[PlyCount "81"]
[EventDate "2019.10.24"]
[EventType "team-tourn"]
[EventCountry "GEO"]
[SourceTitle "playchess.com"]
[Source "ChessBase"]
[SourceQuality "1"]
[WhiteTeam "Germany"]
[BlackTeam "Slovenia"]
[WhiteTeamCountry "GER"]
[BlackTeamCountry "SLO"]
[TimeControl "40/5400+30:1800+30"]

1. e4 {[%emt 0:00:00]} c5 {[%emt 0:00:00]} 2. Nf3 {[%emt 0:00:00]} d6 {[%emt 0:00:00]} 3. d4 {[%emt 0:00:00]} cxd4 {[%emt 0:00:00]} 4. Nxd4 {[%emt 0:00:00]} Nf6 {[%emt 0:00:00]} 5. Nc3 {[%emt 0:00:00]} a6 {[%emt 0:00:05]} 6. Be3 {[%emt 0:00:00]} e5 {[%emt 0:00:13]} 7. Nb3 {[%emt 0:00:00]} Be7 {[%emt 0:01:45]} 8. f3 {[%emt 0:00:19]} Be6 {[%emt 0:00:14]} 9. g4 {[%emt 0:02:20]} Nbd7 {[%emt 0:05:05]} 10. Qd2 {[%emt 0:06:26]} b5 {[%emt 0:03:40]} 11. g5 {[%emt 0:08:58]} Nh5 {[%emt 0:00:15]} 12. Nd5 {[%emt 0:15:48]} Bxd5 {[%emt 0:09:46]} 13. exd5 {[%emt 0:01:10]} Qc7 {[%emt 0:05:00]} 14. O-O-O {[%emt 0:07:21]} O-O {[%emt 0:06:20]} 15. Rg1 {[%emt 0:14:03]} Nb6 {[%emt 0:07:51]} 16. Kb1 {[%emt 0:13:55]} Rac8 {[%emt 0:11:17]} 17. Na5 {[%emt 0:04:48]} Nxd5 {[%emt 0:15:17]} 18. Qxd5 {[%emt 0:00:37]} Qxa5 {[%emt 0:00:17]} 19. Bh3 {[%emt 0:08:29]} Rc4 {[%emt 0:03:21]} 20. Rg4 {[%emt 0:02:55]} Qc7 {[%emt 0:12:59]} 21. c3 {[%emt 0:06:48]} g6 {[%emt 0:04:59]} 22. Bf1 {[%emt 0:01:32]} Rxg4 {[%emt 0:02:48]} 23. fxg4 {[%emt 0:00:01]} Ng7 {[%emt 0:00:27]} 24. h4 {[%emt 0:01:16]} Qc8 {[%emt 0:04:23]} 25. Be2 {[%emt 0:01:20]} Ne6 {[%emt 0:01:07]} 26. Rf1 {[%emt 0:01:40]} Qa8 {[%emt 0:01:41]} 27. Qd2 {[%emt 0:01:23]} Qd8 {[%emt 0:02:03]} 28. Bf3 {[%emt 0:00:13]} a5 {[%emt 0:01:38]} 29. Bd5 {[%emt 0:00:35]} a4 {[%emt 0:01:05]} 30. Qf2 {[%emt 0:00:59]} a3 {[%emt 0:00:37]} 31. h5 {[%emt 0:01:39]} axb2 {[%emt 0:00:37]} 32. hxg6 {[%emt 0:00:29]} Nxg5 {[%emt 0:00:32]} 33. gxf7+ {[%emt 0:00:37]} Kg7 {[%emt 0:00:29]} 34. Qf5 {[%emt 0:00:25]} Qc8 {[%emt 0:00:17]} 35. Bxg5 {[%emt 0:00:27]} Qxf5+ {[%emt 0:00:44]} 36. Rxf5 {[%emt 0:00:01]} Bxg5 {[%emt 0:00:31]} 37. Rxg5+ {[%emt 0:00:03]} Kf6 {[%emt 0:00:20]} 38. Rg8 {[%emt 0:00:15]} Ke7 {[%emt 0:00:44]} 39. Kxb2 {[%emt 0:00:08]} e4 {[%emt 0:00:11]} 40. Kc2 {[%emt 0:00:00]} e3 {[%emt 0:00:00]} 41. Kd3 {[%emt 0:00:40]} 1-0

[Event "22nd ETCC Women 2019"]
[Site "Batumi"]
[Date "2019.10.26"]
[Round "3.8"]
[White "Arabidze, Meri"]
[Black "Sandu, Mihaela"]
[Result "1-0"]
[ECO "E63"]
[WhiteElo "2398"]
[BlackElo "2260"]
[Annotator "NA"]
[PlyCount "91"]
[EventDate "2019.10.24"]
[EventType "team-tourn"]
[EventCountry "GEO"]
[SourceTitle "playchess.com"]
[Source "ChessBase"]
[SourceQuality "1"]
[WhiteTeam "Georgia"]
[BlackTeam "Romania"]
[WhiteTeamCountry "GEO"]
[BlackTeamCountry "ROU"]
[TimeControl "40/5400+30:1800+30"]

1. d4 {[%emt 0:00:00]} Nf6 {[%emt 0:00:00]} 2. c4 {[%emt 0:00:00]} g6 {[%emt 0:00:00]} 3. Nf3 {[%emt 0:00:01]} Bg7 {[%emt 0:00:00]} 4. g3 {[%emt 0:00:18]} O-O {[%emt 0:00:00]} 5. Bg2 {[%emt 0:00:13]} d6 {[%emt 0:00:12]} 6. O-O {[%emt 0:00:23]} Nc6 {[%emt 0:00:10]} 7. Nc3 {[%emt 0:00:21]} a6 {[%emt 0:00:06]} 8. Bf4 {[%emt 0:00:25]} Rb8 {[%emt 0:00:18]} 9. Rc1 {[%emt 0:00:48]} h6 {[%emt 0:00:23]} 10. h3 {[%emt 0:01:03]} Bd7 {[%emt 0:08:52]} 11. a3 {[%emt 0:16:46]} Nh5 {[%emt 0:12:28]} 12. Bd2 {[%emt 0:07:32]} e5 {[%emt 0:01:26]} 13. dxe5 {[%emt 0:08:08]} dxe5 {[%emt 0:00:31]} 14. b4 {[%emt 0:01:49]} Be6 {[%emt 0:02:01]} 15. c5 {[%emt 0:16:45]} Qe7 {[%emt 0:16:39]} 16. e4 {[%emt 0:05:27]} Rfd8 {[%emt 0:13:23]} 17. Re1 {[%emt 0:01:34]} Nf6 {[%emt 0:14:48]} 18. Kh2 {[%emt 0:03:37]} Bc4 {[%emt 0:03:07]} 19. Qc2 {[%emt 0:02:32]} Qe6 {[%emt 0:00:39]} 20. Qb2 {[%emt 0:04:14]} Rd7 {[%emt 0:03:23]} 21. Be3 {[%emt 0:01:38]} Rbd8 {[%emt 0:02:54]} 22. Nd2 {[%emt 0:05:37]} Bd3 23. Nb3 {[%emt 0:04:08]} Bc4 {[%emt 0:05:49]} 24. Nd2 {[%emt 0:01:47]} Bd3 {[%emt 0:00:05]} 25. Nb3 {[%emt 0:12:11]} Bc4 {[%emt 0:01:10]} 26. Nd2 {[%emt 0:00:32]} Bd3 {[%emt 0:00:16]} 27. Nb3 {[%emt 0:00:47]} Nd4 {[%emt 0:04:09]} 28. Bxd4 {[%emt 0:00:48]} exd4 {[%emt 0:00:07]} 29. Nd5 {[%emt 0:00:10]} Nxe4 {[%emt 0:00:54]} 30. Nf4 {[%emt 0:00:31]} Qf5 {[%emt 0:03:17]} 31. Nxd3 {[%emt 0:01:18]} Nf6 {[%emt 0:03:15]} 32. c6 {[%emt 0:01:49]} bxc6 {[%emt 0:00:49]} 33. Nbc5 {[%emt 0:00:22]} Rd5 {[%emt 0:00:04]} 34. Bxd5 {[%emt 0:01:17]} Nxd5 {[%emt 0:00:29]} 35. Qd2 {[%emt 0:00:35]} g5 {[%emt 0:01:27]} 36. Qe2 {[%emt 0:01:43]} Nc3 {[%emt 0:01:26]} 37. Qg4 {[%emt 0:00:06]} Qd5 {[%emt 0:00:23]} 38. Re7 {[%emt 0:01:10]} Rd6 {[%emt 0:02:16]} 39. Rce1 {[%emt 0:00:28]} Kh7 {[%emt 0:00:36]} 40. Qh5 {[%emt 0:00:00]} Rf6 {[%emt 0:00:00]} 41. Kg1 {[%emt 0:09:01]} Qc4 {[%emt 0:13:48]} 42. Rxc7 {[%emt 0:02:30]} Qa2 {[%emt 0:04:34]} 43. Nd7 {[%emt 0:05:52]} Rf5 {[%emt 0:03:35]} 44. Qg4 {[%emt 0:00:40]} Rb5 {[%emt 0:02:37]} 45. N7c5 {[%emt 0:01:42]} Qd5 {[%emt 0:02:04]} 46. Rd7 {[%emt 0:00:27]} 1-0

[Event "22nd ETCC Women 2019"]
[Site "Batumi"]
[Date "2019.10.26"]
[Round "3.8"]
[White "Vidic, Teja"]
[Black "Muetsch, Annmarie"]
[Result "1-0"]
[ECO "A05"]
[WhiteElo "2174"]
[BlackElo "2266"]
[Annotator "NA"]
[PlyCount "107"]
[EventDate "2019.10.24"]
[EventType "team-tourn"]
[EventCountry "GEO"]
[SourceTitle "playchess.com"]
[Source "ChessBase"]
[SourceQuality "1"]
[WhiteTeam "Slovenia"]
[BlackTeam "Germany"]
[WhiteTeamCountry "SLO"]
[BlackTeamCountry "GER"]
[TimeControl "40/5400+30:1800+30"]

1. Nf3 {[%emt 0:00:00]} Nf6 {[%emt 0:00:00]} 2. c4 {[%emt 0:00:00]} g6 {[%emt 0:00:00]} 3. b4 {[%emt 0:00:00]} Bg7 {[%emt 0:00:00]} 4. Bb2 {[%emt 0:00:00]} O-O {[%emt 0:00:02]} 5. g3 {[%emt 0:00:00]} c6 {[%emt 0:00:16]} 6. Bg2 {[%emt 0:00:04]} d5 {[%emt 0:00:14]} 7. cxd5 {[%emt 0:00:06]} Nxd5 {[%emt 0:00:14]} 8. Bxg7 {[%emt 0:01:15]} Kxg7 {[%emt 0:00:07]} 9. Qb3 {[%emt 0:00:06]} a5 {[%emt 0:01:14]} 10. b5 {[%emt 0:06:20]} cxb5 {[%emt 0:17:31]} 11. Qxb5 {[%emt 0:04:40]} Nc6 {[%emt 0:10:13]} 12. O-O {[%emt 0:00:30]} Qd6 {[%emt 0:01:57]} 13. Qb2+ {[%emt 0:09:34]} Kg8 {[%emt 0:05:21]} 14. Na3 {[%emt 0:00:50]} Rb8 {[%emt 0:04:14]} 15. Rfc1 {[%emt 0:13:15]} Qb4 {[%emt 0:09:26]} 16. Rab1 {[%emt 0:02:10]} Qxb2 {[%emt 0:16:04]} 17. Rxb2 {[%emt 0:00:06]} Be6 {[%emt 0:05:12]} 18. Ng5 {[%emt 0:03:57]} Nd4 {[%emt 0:01:17]} 19. Nxe6 {[%emt 0:15:35]} fxe6 {[%emt 0:02:57]} 20. Kf1 {[%emt 0:00:21]} Rfc8 {[%emt 0:07:50]} 21. Rcb1 {[%emt 0:01:33]} Nb4 {[%emt 0:02:57]} 22. e3 {[%emt 0:01:53]} Nf5 {[%emt 0:00:52]} 23. Nb5 {[%emt 0:06:42]} Rc5 {[%emt 0:05:44]} 24. Nc3 {[%emt 0:03:29]} Nd6 {[%emt 0:00:12]} 25. Ne4 {[%emt 0:05:53]} Nxe4 {[%emt 0:00:52]} 26. Bxe4 {[%emt 0:00:05]} b5 {[%emt 0:00:18]} 27. a3 {[%emt 0:02:47]} Na6 {[%emt 0:00:51]} 28. d4 {[%emt 0:03:12]} Rc3 {[%emt 0:00:52]} 29. Rxb5 {[%emt 0:00:20]} Rxb5 {[%emt 0:00:07]} 30. Rxb5 {[%emt 0:00:05]} Rxa3 {[%emt 0:00:08]} 31. Rb6 {[%emt 0:00:34]} Nb4 {[%emt 0:00:44]} 32. Rxe6 {[%emt 0:00:17]} a4 {[%emt 0:04:53]} 33. Rxe7 {[%emt 0:07:22]} Ra1+ {[%emt 0:01:00]} 34. Kg2 {[%emt 0:00:05]} a3 {[%emt 0:00:28]} 35. Rb7 {[%emt 0:00:44]} a2 {[%emt 0:01:10]} 36. Rxb4 {[%emt 0:00:35]} Rg1+ {[%emt 0:00:20]} 37. Kxg1 {[%emt 0:00:04]} a1=Q+ {[%emt 0:00:07]} 38. Kg2 {[%emt 0:02:01]} Qa5 {[%emt 0:01:53]} 39. Rb8+ {[%emt 0:01:32]} Kg7 {[%emt 0:00:11]} 40. Rb7+ {[%emt 0:00:00]} Kg8 {[%emt 0:00:00]} 41. h4 {[%emt 0:08:45]} Qh5 {[%emt 0:02:03]} 42. Bf3 {[%emt 0:00:24]} Qa5 {[%emt 0:00:31]} 43. e4 {[%emt 0:01:47]} Qd2 {[%emt 0:00:45]} 44. d5 {[%emt 0:02:16]} Qd4 {[%emt 0:00:28]} 45. Rb1 {[%emt 0:05:15]} Qe5 {[%emt 0:00:38]} 46. Rd1 {[%emt 0:00:03]} Qd6 {[%emt 0:00:17]} 47. e5 {[%emt 0:00:39]} Qxe5 {[%emt 0:00:11]} 48. d6 {[%emt 0:00:04]} Qe8 {[%emt 0:00:13]} 49. d7 {[%emt 0:00:03]} Qd8 {[%emt 0:00:05]} 50. Bc6 {[%emt 0:00:47]} Kf7 {[%emt 0:00:24]} 51. Re1 {[%emt 0:01:09]} Qc7 {[%emt 0:01:57]} 52. Kg1 {[%emt 0:01:05]} Qa5 {[%emt 0:01:09]} 53. Re8 {[%emt 0:00:25]} Qa1+ {[%emt 0:00:12]} 54. Kh2 {[%emt 0:00:54]} 1-0

[Event "22nd ETCC Women 2019"]
[Site "Batumi"]
[Date "2019.10.26"]
[Round "3.9"]
[White "Brunello, Marina"]
[Black "Milliet, Sophie"]
[Result "1/2-1/2"]
[ECO "B47"]
[WhiteElo "2381"]
[BlackElo "2400"]
[Annotator "NA"]
[PlyCount "105"]
[EventDate "2019.10.24"]
[EventType "team-tourn"]
[EventCountry "GEO"]
[SourceTitle "playchess.com"]
[Source "ChessBase"]
[SourceQuality "1"]
[WhiteTeam "Italy"]
[BlackTeam "France"]
[WhiteTeamCountry "ITA"]
[BlackTeamCountry "FRA"]
[TimeControl "40/5400+30:1800+30"]

1. e4 {[%emt 0:00:00]} c5 {[%emt 0:00:00]} 2. Nf3 {[%emt 0:00:00]} Nc6 {[%emt 0:00:00]} 3. d4 {[%emt 0:00:00]} cxd4 {[%emt 0:00:00]} 4. Nxd4 {[%emt 0:00:06]} e6 {[%emt 0:00:00]} 5. Nc3 {[%emt 0:00:06]} Qc7 {[%emt 0:00:00]} 6. Be2 {[%emt 0:00:23]} Nf6 {[%emt 0:00:10]} 7. O-O {[%emt 0:00:18]} Be7 {[%emt 0:00:11]} 8. Be3 {[%emt 0:03:50]} O-O {[%emt 0:01:08]} 9. Kh1 {[%emt 0:00:42]} d6 {[%emt 0:06:43]} 10. f4 {[%emt 0:09:23]} Nxd4 {[%emt 0:04:14]} 11. Qxd4 {[%emt 0:04:27]} b6 {[%emt 0:01:01]} 12. Bf3 {[%emt 0:16:44]} e5 {[%emt 0:08:53]} 13. Qd3 {[%emt 0:14:03]} Bb7 {[%emt 0:05:34]} 14. Nb5 {[%emt 0:02:07]} Qc6 {[%emt 0:10:22]} 15. c4 {[%emt 0:00:17]} Rfc8 {[%emt 0:15:05]} 16. b3 {[%emt 0:02:05]} a6 {[%emt 0:11:46]} 17. Nc3 {[%emt 0:03:44]} b5 {[%emt 0:00:03]} 18. Nd5 {[%emt 0:09:55]} Nxd5 {[%emt 0:00:42]} 19. exd5 {[%emt 0:00:23]} Qd7 {[%emt 0:07:26]} 20. c5 {[%emt 0:06:53]} dxc5 {[%emt 0:05:21]} 21. fxe5 {[%emt 0:00:09]} c4 {[%emt 0:00:07]} 22. bxc4 {[%emt 0:00:45]} bxc4 {[%emt 0:00:02]} 23. Qc2 {[%emt 0:00:14]} Bc5 24. Bf4 {[%emt 0:00:31]} a5 {[%emt 0:15:20]} 25. Rad1 {[%emt 0:00:28]} Ra7 {[%emt 0:00:23]} 26. Rfe1 {[%emt 0:04:14]} Bb4 {[%emt 0:00:09]} 27. Rf1 {[%emt 0:05:20]} c3 {[%emt 0:01:56]} 28. Rfe1 {[%emt 0:01:00]} Ba8 {[%emt 0:01:00]} 29. e6 {[%emt 0:01:11]} fxe6 {[%emt 0:00:43]} 30. Bg4 {[%emt 0:00:07]} Ra6 {[%emt 0:02:52]} 31. dxe6 {[%emt 0:06:15]} Qe7 {[%emt 0:00:37]} 32. Bf5 {[%emt 0:03:04]} Bc6 {[%emt 0:03:38]} 33. Bxh7+ {[%emt 0:00:55]} Kh8 {[%emt 0:00:01]} 34. Bd3 {[%emt 0:02:03]} Ra7 {[%emt 0:00:04]} 35. Re3 {[%emt 0:01:05]} Qh4 {[%emt 0:00:06]} 36. Bg3 {[%emt 0:00:18]} Qh6 {[%emt 0:00:47]} 37. Qe2 {[%emt 0:02:15]} Re7 {[%emt 0:01:33]} 38. Re5 {[%emt 0:02:09]} Be8 {[%emt 0:00:25]} 39. Rf1 {[%emt 0:00:37]} Bg6 40. Bf4 {[%emt 0:00:00]} Bxd3 {[%emt 0:00:00]} 41. Qxd3 {[%emt 0:02:28]} Qh7 {[%emt 0:04:53]} 42. Qa6 {[%emt 0:11:49]} Rf8 {[%emt 0:23:50]} 43. Bg5 {[%emt 0:03:26]} Rxf1+ {[%emt 0:02:32]} 44. Qxf1 {[%emt 0:00:05]} Bd6 {[%emt 0:00:35]} 45. h4 {[%emt 0:04:55]} Bxe5 {[%emt 0:00:41]} 46. Qf8+ {[%emt 0:00:21]} Qg8 {[%emt 0:00:00]} 47. Qxe7 {[%emt 0:00:09]} Qb8 {[%emt 0:00:59]} 48. Bc1 {[%emt 0:01:00]} Bf6 {[%emt 0:01:35]} 49. Qc5 {[%emt 0:04:40]} Qg3 {[%emt 0:00:03]} 50. Qh5+ {[%emt 0:03:55]} Kg8 {[%emt 0:00:01]} 51. Qf7+ {[%emt 0:00:22]} Kh7 {[%emt 0:00:20]} 52. Qh5+ {[%emt 0:00:34]} Kg8 {[%emt 0:00:00]} 53. Qf7+ {[%emt 0:00:05]} 1/2-1/2

[Event "22nd ETCC Women 2019"]
[Site "Batumi"]
[Date "2019.10.26"]
[Round "3.9"]
[White "Avramidou, Anastasia"]
[Black "Houska, Jovanka"]
[Result "1-0"]
[ECO "D35"]
[WhiteElo "2247"]
[BlackElo "2430"]
[Annotator "NA"]
[PlyCount "91"]
[EventDate "2019.10.24"]
[EventType "team-tourn"]
[EventCountry "GEO"]
[SourceTitle "playchess.com"]
[Source "ChessBase"]
[SourceQuality "1"]
[WhiteTeam "Greece"]
[BlackTeam "England"]
[WhiteTeamCountry "GRE"]
[BlackTeamCountry "ENG"]
[TimeControl "40/5400+30:1800+30"]

1. d4 {[%emt 0:00:00]} Nf6 {[%emt 0:00:00]} 2. c4 {[%emt 0:00:00]} e6 {[%emt 0:00:00]} 3. Nc3 {[%emt 0:00:02]} d5 {[%emt 0:00:32]} 4. cxd5 {[%emt 0:00:09]} exd5 {[%emt 0:00:02]} 5. Bg5 {[%emt 0:00:12]} c6 {[%emt 0:00:08]} 6. e3 {[%emt 0:01:51]} Bd6 {[%emt 0:01:09]} 7. Bd3 {[%emt 0:02:50]} h6 {[%emt 0:03:01]} 8. Bh4 {[%emt 0:00:20]} O-O {[%emt 0:00:07]} 9. Nge2 {[%emt 0:12:34]} Re8 {[%emt 0:00:08]} 10. Qd2 {[%emt 0:00:33]} Na6 {[%emt 0:06:47]} 11. f3 {[%emt 0:11:13]} Be6 {[%emt 0:26:02]} 12. O-O {[%emt 0:08:15]} Nb4 {[%emt 0:01:21]} 13. Bb1 {[%emt 0:05:20]} c5 {[%emt 0:01:46]} 14. Kh1 {[%emt 0:02:44]} Nc6 {[%emt 0:06:33]} 15. Nb5 {[%emt 0:03:45]} Be7 {[%emt 0:22:33]} 16. dxc5 {[%emt 0:06:01]} Bxc5 {[%emt 0:06:17]} 17. Bxf6 {[%emt 0:04:44]} Qxf6 {[%emt 0:00:41]} 18. Nc7 {[%emt 0:00:27]} Qe5 {[%emt 0:10:18]} 19. Nxa8 {[%emt 0:01:21]} Bxe3 {[%emt 0:00:38]} 20. Qd3 {[%emt 0:06:36]} d4 {[%emt 0:02:53]} 21. f4 {[%emt 0:09:08]} Qa5 {[%emt 0:00:56]} 22. Qh7+ {[%emt 0:02:12]} Kf8 {[%emt 0:00:03]} 23. Ng3 {[%emt 0:00:06]} Ke7 {[%emt 0:05:20]} 24. f5 {[%emt 0:05:05]} Bc4 {[%emt 0:00:14]} 25. Bd3 {[%emt 0:00:53]} Bd5 {[%emt 0:03:45]} 26. Be4 {[%emt 0:03:00]} Bc4 {[%emt 0:00:03]} 27. Qxg7 {[%emt 0:06:47]} Rxa8 {[%emt 0:00:19]} 28. f6+ {[%emt 0:01:03]} Kd7 {[%emt 0:00:32]} 29. b3 {[%emt 0:01:33]} Be6 {[%emt 0:01:00]} 30. Bf5 {[%emt 0:00:35]} Ne5 {[%emt 0:00:01]} 31. Qh7 {[%emt 0:01:11]} Qd5 {[%emt 0:01:16]} 32. Rad1 {[%emt 0:02:38]} Re8 {[%emt 0:00:16]} 33. Bxe6+ {[%emt 0:00:29]} Rxe6 {[%emt 0:00:02]} 34. Nf5 {[%emt 0:01:34]} Qe4 {[%emt 0:00:06]} 35. Qg7 {[%emt 0:00:20]} Kc7 {[%emt 0:01:18]} 36. Qf8 {[%emt 0:01:16]} Nd7 {[%emt 0:01:01]} 37. Qxf7 {[%emt 0:00:18]} Rxf6 {[%emt 0:00:03]} 38. Qc4+ {[%emt 0:00:08]} Rc6 {[%emt 0:00:34]} 39. Qg8 {[%emt 0:01:39]} Rc2 {[%emt 0:00:41]} 40. Nxe3 {[%emt 0:00:00]} dxe3 {[%emt 0:00:00]} 41. Qg7 {[%emt 0:05:51]} Qe6 {[%emt 0:04:36]} 42. Qg3+ {[%emt 0:09:49]} Kc8 {[%emt 0:02:37]} 43. Rc1 {[%emt 0:00:24]} Rc5 {[%emt 0:02:51]} 44. Rxc5+ {[%emt 0:03:15]} Nxc5 {[%emt 0:00:04]} 45. Rc1 {[%emt 0:00:05]} b6 {[%emt 0:04:13]} 46. b4 {[%emt 0:00:07]} 1-0

[Event "22nd ETCC Women 2019"]
[Site "Batumi"]
[Date "2019.10.26"]
[Round "3.10"]
[White "Guichard, Pauline"]
[Black "Sedina, Elena"]
[Result "0-1"]
[ECO "A06"]
[WhiteElo "2407"]
[BlackElo "2294"]
[Annotator "NA"]
[PlyCount "136"]
[EventDate "2019.10.24"]
[EventType "team-tourn"]
[EventCountry "GEO"]
[SourceTitle "playchess.com"]
[Source "ChessBase"]
[SourceQuality "1"]
[WhiteTeam "France"]
[BlackTeam "Italy"]
[WhiteTeamCountry "FRA"]
[BlackTeamCountry "ITA"]
[TimeControl "40/5400+30:1800+30"]

1. Nf3 {[%emt 0:00:00]} d5 {[%emt 0:00:00]} 2. g3 {[%emt 0:00:00]} Bg4 {[%emt 0:00:49]} 3. Bg2 {[%emt 0:00:00]} c6 {[%emt 0:00:40]} 4. O-O {[%emt 0:00:13]} Nd7 {[%emt 0:01:11]} 5. d3 {[%emt 0:01:11]} Ngf6 {[%emt 0:02:55]} 6. Qe1 {[%emt 0:01:28]} e5 {[%emt 0:06:24]} 7. e4 {[%emt 0:00:54]} dxe4 {[%emt 0:15:31]} 8. dxe4 {[%emt 0:00:08]} Bxf3 {[%emt 0:02:24]} 9. Bxf3 {[%emt 0:00:12]} a5 {[%emt 0:00:48]} 10. a4 {[%emt 0:00:40]} Bb4 {[%emt 0:12:04]} 11. Bd2 {[%emt 0:08:08]} Bxd2 {[%emt 0:13:40]} 12. Nxd2 {[%emt 0:00:17]} O-O {[%emt 0:10:59]} 13. Nc4 {[%emt 0:00:22]} Qc7 {[%emt 0:02:00]} 14. Qc3 {[%emt 0:06:29]} Rfe8 {[%emt 0:12:39]} 15. Rfd1 {[%emt 0:11:45]} b6 {[%emt 0:01:08]} 16. Nd6 {[%emt 0:15:39]} Re6 {[%emt 0:04:15]} 17. Nf5 {[%emt 0:00:20]} g6 {[%emt 0:01:28]} 18. Nh6+ {[%emt 0:02:54]} Kg7 {[%emt 0:00:04]} 19. Qe3 {[%emt 0:02:08]} Nc5 {[%emt 0:03:06]} 20. Rd2 {[%emt 0:08:40]} Ng8 21. Nxg8 {[%emt 0:08:05]} Kxg8 {[%emt 0:05:14]} 22. Rad1 {[%emt 0:02:11]} Ree8 {[%emt 0:00:48]} 23. Qg5 {[%emt 0:09:47]} Qe7 {[%emt 0:00:25]} 24. Qxe7 {[%emt 0:04:52]} Rxe7 {[%emt 0:00:01]} 25. b3 {[%emt 0:03:53]} Kf8 {[%emt 0:02:16]} 26. Bg2 {[%emt 0:01:54]} Raa7 {[%emt 0:00:48]} 27. f3 {[%emt 0:01:01]} Red7 {[%emt 0:00:48]} 28. Bf1 {[%emt 0:06:59]} Ke7 {[%emt 0:00:28]} 29. Bc4 {[%emt 0:01:20]} Rxd2 {[%emt 0:00:37]} 30. Rxd2 {[%emt 0:00:05]} f6 {[%emt 0:00:05]} 31. h4 {[%emt 0:01:15]} Rb7 {[%emt 0:00:52]} 32. Rd1 {[%emt 0:01:50]} Rb8 {[%emt 0:00:39]} 33. Kf2 {[%emt 0:00:08]} Ne6 {[%emt 0:00:39]} 34. Ke3 {[%emt 0:01:04]} Nc5 {[%emt 0:00:34]} 35. Ra1 {[%emt 0:00:45]} b5 {[%emt 0:00:26]} 36. axb5 {[%emt 0:00:32]} cxb5 {[%emt 0:00:01]} 37. Bd5 {[%emt 0:00:09]} a4 {[%emt 0:00:08]} 38. bxa4 {[%emt 0:00:23]} bxa4 {[%emt 0:00:06]} 39. Kd2 {[%emt 0:00:58]} Kd6 {[%emt 0:00:50]} 40. Kc3 {[%emt 0:00:00]} Rc8 {[%emt 0:00:00]} 41. Bc4 {[%emt 0:03:20]} Rb8 {[%emt 0:09:51]} 42. Rd1+ {[%emt 0:01:56]} Kc7 {[%emt 0:04:55]} 43. Bd5 {[%emt 0:01:46]} Nd7 {[%emt 0:05:50]} 44. f4 {[%emt 0:03:16]} Nb6 {[%emt 0:04:13]} 45. Kd3 {[%emt 0:10:08]} Nd7 {[%emt 0:01:46]} 46. Ra1 {[%emt 0:01:04]} Kd6 {[%emt 0:01:17]} 47. Kc3 {[%emt 0:02:53]} Nb6 {[%emt 0:03:55]} 48. Ba2 {[%emt 0:00:48]} Rc8+ {[%emt 0:01:16]} 49. Kd3 {[%emt 0:00:06]} Kc5 {[%emt 0:00:04]} 50. c3 {[%emt 0:05:15]} Rd8+ {[%emt 0:00:40]} 51. Kc2 {[%emt 0:00:08]} Re8 {[%emt 0:00:17]} 52. Re1 {[%emt 0:00:58]} exf4 {[%emt 0:03:17]} 53. gxf4 {[%emt 0:00:03]} Nc4 {[%emt 0:00:11]} 54. Kd3 {[%emt 0:03:11]} Rd8+ {[%emt 0:00:13]} 55. Ke2 {[%emt 0:00:18]} Rd2+ {[%emt 0:00:05]} 56. Kf3 {[%emt 0:00:04]} Rxa2 {[%emt 0:00:06]} 57. e5 {[%emt 0:00:06]} fxe5 {[%emt 0:02:03]} 58. fxe5 {[%emt 0:00:02]} Rd2 {[%emt 0:00:28]} 59. e6 {[%emt 0:00:44]} Rd8 {[%emt 0:00:07]} 60. Kf4 {[%emt 0:00:17]} h6 {[%emt 0:00:52]} 61. h5 {[%emt 0:01:13]} Rf8+ {[%emt 0:00:16]} 62. Kg4 {[%emt 0:00:20]} gxh5+ {[%emt 0:00:36]} 63. Kxh5 {[%emt 0:00:07]} Kd6 {[%emt 0:00:41]} 64. Kg6 {[%emt 0:02:22]} Ne5+ {[%emt 0:00:29]} 65. Kg7 {[%emt 0:00:01]} Re8 {[%emt 0:00:10]} 66. Ra1 {[%emt 0:00:12]} Ra8 {[%emt 0:00:46]} 67. Kf6 {[%emt 0:00:03]} Rf8+ {[%emt 0:00:35]} 68. Kg7 {[%emt 0:00:29]} Rf4 {[%emt 0:00:14] Kf7} 0-1

[Event "22nd ETCC Women 2019"]
[Site "Batumi"]
[Date "2019.10.26"]
[Round "3.10"]
[White "Toma, Katarzyna"]
[Black "Pavlidou, Ekaterini"]
[Result "1-0"]
[ECO "B32"]
[WhiteElo "2272"]
[BlackElo "2183"]
[Annotator "NA"]
[PlyCount "51"]
[EventDate "2019.10.24"]
[EventType "team-tourn"]
[EventCountry "GEO"]
[SourceTitle "playchess.com"]
[Source "ChessBase"]
[SourceQuality "1"]
[WhiteTeam "England"]
[BlackTeam "Greece"]
[WhiteTeamCountry "ENG"]
[BlackTeamCountry "GRE"]
[TimeControl "40/5400+30:1800+30"]

1. e4 {[%emt 0:00:00]} c5 {[%emt 0:00:14]} 2. Nf3 {[%emt 0:00:00]} Nc6 {[%emt 0:00:12]} 3. d4 {[%emt 0:00:00]} cxd4 {[%emt 0:00:08]} 4. Nxd4 {[%emt 0:00:00]} e5 {[%emt 0:00:22]} 5. Nb5 {[%emt 0:02:08]} d6 {[%emt 0:00:10]} 6. a4 {[%emt 0:01:19]} Be6 {[%emt 0:02:46]} 7. N1c3 {[%emt 0:02:01]} a6 {[%emt 0:08:26]} 8. Na3 {[%emt 0:00:26]} Be7 {[%emt 0:03:11]} 9. Nc4 {[%emt 0:09:04]} Nf6 {[%emt 0:13:27]} 10. Bg5 {[%emt 0:21:05]} Nd4 {[%emt 0:11:24]} 11. Bxf6 {[%emt 0:04:57]} Bxf6 {[%emt 0:01:48]} 12. a5 {[%emt 0:00:42]} Rc8 {[%emt 0:02:00]} 13. Nb6 {[%emt 0:00:12]} Rc5 {[%emt 0:00:49]} 14. Bd3 {[%emt 0:06:02]} Bg5 {[%emt 0:17:32]} 15. Ncd5 {[%emt 0:06:44]} Bxd5 {[%emt 0:04:48]} 16. exd5 {[%emt 0:00:05]} Qf6 {[%emt 0:04:49]} 17. c3 {[%emt 0:02:54]} Nf5 {[%emt 0:05:15]} 18. Qa4+ {[%emt 0:00:55]} Rb5 {[%emt 0:03:49]} 19. Bxb5+ {[%emt 0:01:25]} axb5 {[%emt 0:00:07]} 20. Qxb5+ {[%emt 0:00:04]} Ke7 {[%emt 0:00:45]} 21. Qd7+ {[%emt 0:00:14]} Kf8 {[%emt 0:00:08]} 22. Qc8+ {[%emt 0:00:43]} Ke7 {[%emt 0:00:06]} 23. Qxb7+ {[%emt 0:00:48]} Ke8 {[%emt 0:00:17]} 24. Qc8+ {[%emt 0:02:35]} Ke7 {[%emt 0:00:07]} 25. Qxh8 {[%emt 0:03:22]} Ne3 {[%emt 0:00:41]} 26. Qf8+ {[%emt 0:02:34]} 1-0